[Event "Lviv Tradition June 2018"]
[Site "Lviv"]
[Date "2018.06.16"]
[Round "8"]
[White "Sabuk, Piotr"]
[Black "Can, Isik"]
[Result "1/2-1/2"]
[ECO "A05"]
[WhiteElo "2369"]
[BlackElo "2396"]
[Annotator "NA"]
[PlyCount "144"]
[EventDate "2018.??.??"]
[EventType "schev"]
[EventCountry "UKR"]
[SourceTitle "playchess.com"]
[Source "ChessBase"]
[SourceQuality "1"]
[TimeControl "5400+30"]

1. Nf3 {[%emt 0:00:00]} Nf6 {[%emt 0:00:05]} 2. c4 {[%emt 0:00:00]} b6 {[%emt 0:00:19]} 3. g3 {[%emt 0:00:30]} Bb7 {[%emt 0:00:05]} 4. Bg2 {[%emt 0:00:11]} e6 {[%emt 0:00:15]} 5. O-O {[%emt 0:00:45]} Be7 {[%emt 0:00:04]} 6. Nc3 {[%emt 0:01:21]} O-O {[%emt 0:00:12]} 7. Re1 {[%emt 0:00:50]} d5 {[%emt 0:01:39]} 8. cxd5 {[%emt 0:07:23]} exd5 {[%emt 0:00:01]} 9. d4 {[%emt 0:00:16]} Nbd7 {[%emt 0:00:06]} 10. Bf4 {[%emt 0:00:53]} Ne4 {[%emt 0:00:44]} 11. Qb3 {[%emt 0:09:19]} Ndf6 {[%emt 0:03:53]} 12. Rac1 {[%emt 0:12:06] LiveBook: 4 Games} c5 {[%emt 0:03:34]} 13. dxc5 {[%emt 0:00:56]} Bxc5 {[%emt 0:01:53]} 14. e3 {[%emt 0:02:15] E17: Queen's Indian: 4 g3 Bb7 5 Bg2 Be7} Nxc3 $146 {[%emt 0:12:20]} ({Predecessor:} 14... Qe7 15. h3 Rac8 16. a3 Rfe8 17. Nb5 a6 18. Nc3 b5 19. Be5 Nd7 20. Bd4 Nb6 21. Bxc5 Nxc5 {0-1 (45) Perez Candelario,M (2527)-Cori Tello,D (2409) Villafranca 2010}) 15. Rxc3 {[%emt 0:02:40]} Qe7 {[%emt 0:11:04]} 16. Rcc1 {[%emt 0:11:55]} Ne4 {[%emt 0:08:00]} 17. Be5 {[%emt 0:03:08]} Rfd8 {[%emt 0:10:04]} 18. Red1 {[%emt 0:09:22]} Rac8 {[%emt 0:00:59]} 19. h4 {[%emt 0:04:08]} Qe6 {[%emt 0:05:52]} 20. Qa4 {[%emt 0:09:42]} a5 {[%emt 0:01:10]} 21. Bd4 {[%emt 0:01:31]} Bc6 {[%emt 0:05:57]} 22. Qb3 {[%emt 0:00:52]} Qe8 {[%emt 0:00:44]} 23. Qd3 {[%emt 0:05:36]} Bb5 {[%emt 0:06:09]} 24. Qb1 {[%emt 0:00:21]} Be2 {[%emt 0:13:26]} 25. Re1 {[%emt 0:00:20]} Bb5 {[%emt 0:08:31]} 26. Ng5 {[%emt 0:06:56]} f5 {[%emt 0:03:02]} 27. Nf3 {[%emt 0:03:35]} Rc6 {[%emt 0:02:34]} 28. Bh3 {[%emt 0:04:03]} Qh5 {[%emt 0:00:41]} 29. Ne5 {[%emt 0:01:53]} Re6 {[%emt 0:00:51]} 30. Qc2 {[%emt 0:01:26]} Bd6 {[%emt 0:00:40]} 31. Nd3 {[%emt 0:00:25]} Rg6 {[%emt 0:00:26]} 32. Nf4 {[%emt 0:00:30]} Bxf4 {[%emt 0:00:31]} 33. exf4 {[%emt 0:00:01]} Qxh4 {[%emt 0:00:35]} 34. Bg2 {[%emt 0:00:46]} Qh5 {[%emt 0:00:32]} 35. Qd1 {[%emt 0:01:01]} Qxd1 {[%emt 0:00:31]} 36. Rexd1 {[%emt 0:00:13]} h5 {[%emt 0:00:30]} 37. Rc7 {[%emt 0:00:34]} h4 {[%emt 0:00:13]} 38. Bh3 {[%emt 0:00:45]} hxg3 {[%emt 0:00:17]} 39. fxg3 {[%emt 0:00:22]} Rxg3+ {[%emt 0:00:17]} 40. Kh2 {[%emt 0:00:05]} Rf8 {[%emt 0:01:10]} 41. Rg1 {[%emt 0:01:03]} Rxg1 {[%emt 0:00:10]} 42. Kxg1 {[%emt 0:00:06]} Rf7 {[%emt 0:00:09]} 43. Bxb6 {[%emt 0:00:54]} a4 {[%emt 0:01:09]} 44. Rxf7 {[%emt 0:00:25]} Kxf7 {[%emt 0:00:01]} 45. Bxf5 {[%emt 0:00:15]} Nd6 {[%emt 0:00:45]} 46. Bc2 {[%emt 0:00:35]} Ne4 {[%emt 0:00:37]} 47. Bd4 {[%emt 0:00:44]} g6 {[%emt 0:00:11]} 48. Kg2 {[%emt 0:00:21]} Ke6 {[%emt 0:00:26]} 49. Kf3 {[%emt 0:00:24]} g5 {[%emt 0:00:31]} 50. Kg4 {[%emt 0:00:45]} Be2+ {[%emt 0:00:55]} 51. Kh3 {[%emt 0:00:15]} gxf4 {[%emt 0:00:22]} 52. Kg2 {[%emt 0:00:37]} Bb5 {[%emt 0:00:42]} 53. Kf3 {[%emt 0:00:21]} Kf5 {[%emt 0:00:07]} 54. Bb6 {[%emt 0:00:23]} Be8 {[%emt 0:00:28]} 55. Kg2 {[%emt 0:00:51]} Kg5 {[%emt 0:00:52]} 56. b3 {[%emt 0:00:28]} axb3 {[%emt 0:00:38]} 57. Bxb3 Bc6 {[%emt 0:00:29]} 58. Bd4 {[%emt 0:00:42]} Nd6 {[%emt 0:00:15]} 59. Kf2 {[%emt 0:00:37]} Nf5 $11 {[%emt 0:00:44]} 60. Bb6 {[%emt 0:00:16]} Ng3 {[%emt 0:00:31]} 61. Bd8+ {[%emt 0:00:47]} Kf5 {[%emt 0:00:15]} 62. Bc2+ {[%emt 0:00:22]} Ne4+ {[%emt 0:00:23]} 63. Kg2 {[%emt 0:00:35]} Bb5 {[%emt 0:00:40]} 64. Kf3 {[%emt 0:00:44]} Be8 {[%emt 0:00:13]} 65. Bb6 {[%emt 0:00:30]} Bh5+ {[%emt 0:00:16]} 66. Kg2 {[%emt 0:00:06]} Be2 {[%emt 0:00:32]} 67. a4 {[%emt 0:00:33]} Kg4 {[%emt 0:00:30]} 68. a5 {[%emt 0:00:28]} f3+ {[%emt 0:01:06]} 69. Kg1 {[%emt 0:00:11]} Nd6 {[%emt 0:00:18]} 70. Bc5 {[%emt 0:00:46]} Nb7 {[%emt 0:00:48]} 71. Bb6 {[%emt 0:00:46]} Bc4 {[%emt 0:00:32]} 72. Kf2 {[%emt 0:00:25]} Nxa5 {[%emt 0:00:29]} 1/2-1/2

[Event "Lviv Tradition June 2018"]
[Site "Lviv"]
[Date "2018.06.16"]
[Round "9"]
[White "Dedebas, Emre Emin"]
[Black "Shkuran, Danylo"]
[Result "1/2-1/2"]
[ECO "D10"]
[WhiteElo "2336"]
[BlackElo "2368"]
[Annotator "NA"]
[PlyCount "62"]
[EventDate "2018.??.??"]
[EventType "schev"]
[EventCountry "UKR"]
[SourceTitle "playchess.com"]
[Source "ChessBase"]
[SourceQuality "1"]
[TimeControl "5400+30"]

1. d4 {[%emt 0:00:00]} d5 {[%emt 0:01:41]} 2. c4 {[%emt 0:00:00]} c6 {[%emt 0:00:10]} 3. cxd5 {[%emt 0:00:00]} cxd5 {[%emt 0:00:10]} 4. Bf4 {[%emt 0:00:00]} Nf6 {[%emt 0:00:50]} 5. Nc3 {[%emt 0:00:04]} Nc6 {[%emt 0:00:19]} 6. e3 {[%emt 0:00:06]} a6 {[%emt 0:00:58]} 7. Nf3 {[%emt 0:00:16]} Bg4 {[%emt 0:01:23]} 8. h3 {[%emt 0:00:16]} Bxf3 {[%emt 0:00:52]} 9. Qxf3 {[%emt 0:00:08]} e6 {[%emt 0:00:17]} 10. Bd3 {[%emt 0:00:07]} Bd6 {[%emt 0:00:56]} 11. Bxd6 {[%emt 0:00:15]} Qxd6 {[%emt 0:00:06]} 12. O-O {[%emt 0:00:08]} O-O {[%emt 0:00:15]} 13. Rfc1 {[%emt 0:00:14]} Rac8 {[%emt 0:02:12]} 14. Qd1 {[%emt 0:00:38]} Na5 {[%emt 0:00:54]} 15. Ne2 {[%emt 0:05:40]} Qd7 {[%emt 0:01:39]} 16. Rxc8 {[%emt 0:01:25]} Rxc8 {[%emt 0:00:07]} 17. Rc1 {[%emt 0:00:18]} Rxc1 {[%emt 0:02:07]} 18. Qxc1 {[%emt 0:00:13]} Qc6 {[%emt 0:00:29]} 19. Qxc6 {[%emt 0:00:32]} Nxc6 {[%emt 0:00:09]} 20. Kf1 {[%emt 0:00:12]} Kf8 {[%emt 0:00:18]} 21. Ke1 {[%emt 0:00:09]} Ke7 {[%emt 0:00:19]} 22. Kd2 {[%emt 0:00:42]} Kd6 {[%emt 0:00:39]} 23. f3 {[%emt 0:00:17]} g6 {[%emt 0:00:36]} 24. Kc3 {[%emt 0:03:02]} a5 {[%emt 0:01:22]} 25. Bb5 {[%emt 0:00:13]} b6 {[%emt 0:00:15]} 26. Bxc6 {[%emt 0:00:38]} Kxc6 {[%emt 0:00:04]} 27. Nf4 {[%emt 0:00:08]} Nd7 {[%emt 0:00:27]} 28. Nd3 {[%emt 0:00:06]} Kb5 {[%emt 0:00:29]} 29. b3 {[%emt 0:00:14]} Kc6 {[%emt 0:00:09]} 30. Kd2 {[%emt 0:00:48]} Kd6 {[%emt 0:00:07]} 31. Kc3 {[%emt 0:00:04]} Kc6 {[%emt 0:00:04]} 1/2-1/2

[Event "Lviv Tradition June 2018"]
[Site "Lviv"]
[Date "2018.06.16"]
[Round "9"]
[White "Tanriverdi, Enes"]
[Black "Frolov, Artur"]
[Result "0-1"]
[ECO "E15"]
[WhiteElo "2281"]
[BlackElo "2406"]
[Annotator "NA"]
[PlyCount "120"]
[EventDate "2018.??.??"]
[EventType "schev"]
[EventCountry "UKR"]
[SourceTitle "playchess.com"]
[Source "ChessBase"]
[SourceQuality "1"]
[TimeControl "5400+30"]

1. d4 {[%emt 0:00:00]} Nf6 {[%emt 0:00:06]} 2. c4 {[%emt 0:00:10]} e6 {[%emt 0:01:16]} 3. Nf3 {[%emt 0:00:23]} b6 {[%emt 0:00:34]} 4. g3 {[%emt 0:00:26]} Ba6 {[%emt 0:00:18]} 5. b3 {[%emt 0:00:06]} Bb4+ {[%emt 0:01:04]} 6. Bd2 {[%emt 0:00:14]} Be7 {[%emt 0:00:05]} 7. Nc3 {[%emt 0:00:14]} Bb7 {[%emt 0:04:48]} 8. Bg2 {[%emt 0:00:22]} Ne4 {[%emt 0:01:10]} 9. O-O {[%emt 0:03:15]} Nxd2 {[%emt 0:00:36]} 10. Qxd2 {[%emt 0:00:14]} d6 {[%emt 0:05:16]} 11. e4 {[%emt 0:05:47]} Nd7 {[%emt 0:01:10]} 12. d5 {[%emt 0:09:12]} e5 {[%emt 0:00:35]} 13. Ne1 {[%emt 0:00:13]} h5 {[%emt 0:02:16]} 14. Nd3 {[%emt 0:04:24]} h4 {[%emt 0:00:21]} 15. Rae1 {[%emt 0:02:00]} Nc5 {[%emt 0:03:30]} 16. Nb4 {[%emt 0:06:06]} Qd7 {[%emt 0:02:09]} 17. f4 {[%emt 0:03:55]} hxg3 {[%emt 0:00:06]} 18. hxg3 {[%emt 0:00:06]} a5 {[%emt 0:25:21]} 19. Nc6 {[%emt 0:00:48]} Bxc6 {[%emt 0:00:06]} 20. dxc6 {[%emt 0:00:05]} Qxc6 {[%emt 0:00:01]} 21. Nb5 {[%emt 0:03:28]} Na6 {[%emt 0:01:34]} 22. Qd5 {[%emt 0:04:22]} Qc5+ {[%emt 0:01:48]} 23. Qxc5 {[%emt 0:03:23]} bxc5 {[%emt 0:00:17]} 24. fxe5 {[%emt 0:00:52]} dxe5 {[%emt 0:00:06]} 25. Rf5 {[%emt 0:02:23]} c6 {[%emt 0:02:06]} 26. Nc3 {[%emt 0:00:16]} f6 {[%emt 0:00:53]} 27. Rd1 {[%emt 0:00:59]} Nc7 {[%emt 0:00:51]} 28. Rf2 {[%emt 0:00:22]} Ne6 {[%emt 0:00:23]} 29. Bf1 {[%emt 0:00:44]} Nd4 {[%emt 0:00:32]} 30. Rd3 {[%emt 0:00:08]} O-O-O {[%emt 0:00:33]} 31. Rh2 {[%emt 0:00:24]} Rxh2 {[%emt 0:01:37]} 32. Kxh2 {[%emt 0:00:01]} Kc7 {[%emt 0:00:09]} 33. Kg2 {[%emt 0:03:16]} g6 {[%emt 0:00:49]} 34. g4 {[%emt 0:00:19]} Bf8 {[%emt 0:03:31]} 35. Na4 {[%emt 0:02:56]} Rd7 {[%emt 0:01:49]} 36. Rd1 {[%emt 0:06:15]} Rh7 {[%emt 0:00:26]} 37. Bd3 {[%emt 0:00:41]} Ne6 {[%emt 0:00:11]} 38. Bf1 {[%emt 0:01:29]} Bh6 {[%emt 0:00:55]} 39. Kf2 {[%emt 0:01:29]} Bg5 {[%emt 0:07:08]} 40. Bg2 {[%emt 0:01:17]} Nf4 {[%emt 0:03:15]} 41. Nxc5 {[%emt 0:01:34]} Rh2 {[%emt 0:01:45]} 42. Kf3 {[%emt 0:00:09]} Rxg2 {[%emt 0:01:44]} 43. Ne6+ {[%emt 0:00:06]} Nxe6 {[%emt 0:00:38]} 44. Kxg2 {[%emt 0:00:02]} Bf4 {[%emt 0:00:27]} 45. a3 {[%emt 0:04:54]} Nc5 {[%emt 0:00:37]} 46. b4 {[%emt 0:00:02]} axb4 {[%emt 0:00:30]} 47. axb4 {[%emt 0:00:01]} Nxe4 {[%emt 0:00:03]} 48. Ra1 {[%emt 0:00:18]} Bd2 {[%emt 0:04:49]} 49. b5 {[%emt 0:03:56]} cxb5 {[%emt 0:00:21]} 50. cxb5 {[%emt 0:00:03]} Kb6 {[%emt 0:00:39]} 51. Kf3 {[%emt 0:00:16]} Nc5 {[%emt 0:00:05]} 52. Ra8 {[%emt 0:00:54]} Kxb5 {[%emt 0:00:48]} 53. Rg8 {[%emt 0:01:31]} g5 {[%emt 0:00:23]} 54. Rf8 {[%emt 0:00:10]} Bc3 {[%emt 0:00:39]} 55. Ke3 {[%emt 0:00:43]} Bd4+ {[%emt 0:00:02]} 56. Ke2 {[%emt 0:00:09]} e4 {[%emt 0:00:01]} 57. Rb8+ {[%emt 0:00:11]} Kc4 {[%emt 0:00:03]} 58. Re8 {[%emt 0:00:12]} Kd5 {[%emt 0:00:31]} 59. Re7 {[%emt 0:00:23]} Ne6 {[%emt 0:00:05]} 60. Re8 {[%emt 0:00:19]} Nf4+ {[%emt 0:00:11]} 0-1

[Event "Lviv Tradition June 2018"]
[Site "Lviv"]
[Date "2018.06.16"]
[Round "9.5"]
[White "Can, Isik"]
[Black "Anwesh, Upadhyaya"]
[Result "1/2-1/2"]
[ECO "C42"]
[WhiteElo "2396"]
[BlackElo "2375"]
[Annotator "NA"]
[PlyCount "61"]
[EventDate "2018.??.??"]
[EventType "schev"]
[EventCountry "UKR"]
[SourceTitle "playchess.com"]
[Source "ChessBase"]
[SourceQuality "1"]
[TimeControl "5400+30"]

1. e4 e5 2. Nf3 Nf6 3. Nxe5 d6 4. Nf3 Nxe4 5. d4 d5 6. Bd3 Be7 7. O-O Nc6 8. Nc3 Nxc3 9. bxc3 O-O 10. Re1 Be6 11. Bf4 Qd7 12. Rb1 Rab8 13. Ne5 Nxe5 14. Bxe5 Bg4 15. Qd2 f6 16. Bf4 Bd6 17. c4 dxc4 18. Bxc4+ Kh8 19. Bxd6 Qxd6 20. c3 b6 21. Re3 Rbe8 22. Rbe1 Bd7 23. Rxe8 Rxe8 24. Rxe8+ Bxe8 25. Qe3 Bd7 26. Qe4 Bc6 27. Qe3 Bd7 28. Qe4 Bc6 29. Qe3 Bd7 30. Qe4 Bc6 31. Qe3 $11 1/2-1/2

[Event "Lviv Tradition June 2018"]
[Site "Lviv"]
[Date "2018.06.17"]
[Round "10"]
[White "Frolov, Artur"]
[Black "Dedebas, Emre Emin"]
[Result "0-1"]
[ECO "C87"]
[WhiteElo "2406"]
[BlackElo "2336"]
[Annotator "NA"]
[PlyCount "120"]
[EventDate "2018.??.??"]
[EventType "schev"]
[EventCountry "UKR"]
[SourceTitle "playchess.com"]
[Source "ChessBase"]
[SourceQuality "1"]
[TimeControl "5400+30"]

{[%evp 8,93,29,15,20,31,38,40,39,48,39,27,49,32,32,33,34,40,33,23,32,17,23,25,26,32767,24,11,12,16,15,4,4,5,32767,18,27,25,32,32767,32767,32767,32767,32767,32767,32767,32767,32767,32767,32767,32767,32767,57,47,101,115,32767,137,241,32767,32767,32767,151,32767,-228,-221,32767,32767,32767,32767,32767,32767,-233,-229,-237,-232,-233,-247,32767,-287,-260,32767,-167,32767,32767,-194,32767,-209]} 1. e4 {[%emt 0:00:00]} e5 {[%emt 0:00:04]} 2. Nf3 {[%emt 0:00:00]} Nc6 {[%emt 0:00:03]} 3. Bb5 {[%emt 0:00:00]} a6 {[%emt 0:00:04]} 4. Ba4 {[%emt 0:00:00]} Nf6 {[%emt 0:00:04]} 5. O-O {[%emt 0:00:02]} Be7 {[%emt 0:00:12]} 6. Re1 {[%emt 0:03:10]} d6 {[%emt 0:00:30]} 7. c3 {[%emt 0:00:43]} Bg4 {[%emt 0:00:15]} 8. d3 {[%emt 0:01:27]} Nd7 {[%emt 0:00:15]} 9. Nbd2 {[%emt 0:02:32] C87: Closed Ruy Lopez: Steinitz-type lines after 6 Re1 d6} Nc5 {[%emt 0:00:10]} 10. Bc2 {[%emt 0:00:30]} Ne6 {[%emt 0:00:09]} 11. h3 {[%emt 0:01:03]} Bh5 {[%emt 0:00:08]} 12. Nf1 {[%emt 0:05:34]} Ng5 {[%emt 0:02:12]} 13. Bxg5 {[%emt 0:00:19]} Bxg5 {[%emt 0:00:09] LiveBook: 42 Games} 14. Ng3 {[%emt 0:00:08]} Bxf3 {[%emt 0:00:06]} 15. Qxf3 {[%emt 0:00:05]} g6 {[%emt 0:00:20]} (15... O-O 16. Rad1 Qf6 17. Qxf6 Bxf6 {0-1 (57) Najer,E (2699)-Mamedyarov,S (2791) Antalya 2017}) 16. Nf1 {[%emt 0:01:40]} Qf6 {[%emt 0:02:49]} 17. Qxf6 {[%emt 0:00:10]} Bxf6 {[%emt 0:00:04]} 18. Ne3 $146 {[%emt 0:00:09]} Ne7 {[%emt 0:00:39]} 19. b4 {[%emt 0:00:35]} O-O {[%emt 0:01:01]} 20. a4 {[%emt 0:00:12]} Rfb8 {[%emt 0:04:07]} 21. a5 {[%emt 0:00:35]} Rd8 {[%emt 0:03:41]} 22. Bb3 {[%emt 0:00:51]} Rac8 {[%emt 0:13:00]} 23. Rab1 {[%emt 0:08:49]} h5 {[%emt 0:00:59]} 24. Kf1 {[%emt 0:00:50]} Kg7 {[%emt 0:00:33]} 25. Ke2 {[%emt 0:01:51]} Bg5 {[%emt 0:01:30]} 26. g3 {[%emt 0:01:05]} h4 {[%emt 0:00:41]} 27. Rf1 {[%emt 0:04:00]} hxg3 {[%emt 0:04:24]} 28. fxg3 {[%emt 0:00:06]} Rf8 {[%emt 0:00:03]} 29. Rf3 {[%emt 0:09:33]} f5 {[%emt 0:18:26]} (29... Bxe3 $5 30. Kxe3 f5 $14) 30. Be6 {[%emt 0:01:42]} Rce8 {[%emt 0:00:12] [#]} 31. Rbf1 $1 {[%emt 0:01:40]} f4 {[%emt 0:00:18]} 32. h4 {[%emt 0:11:08]} Bf6 {[%emt 0:02:15]} (32... Bh6 {might work better.}) 33. Ng4 {[%emt 0:00:31]} g5 {[%emt 0:01:35]} 34. Nxf6 {[%emt 0:13:24]} Kxf6 {[%emt 0:01:27]} 35. hxg5+ {[%emt 0:01:30]} Kxe6 {[%emt 0:00:32]} 36. gxf4 {[%emt 0:00:04]} Rxf4 {[%emt 0:02:07]} 37. Rxf4 {[%emt 0:00:01]} exf4 {[%emt 0:00:30]} 38. Rxf4 {[%emt 0:00:01]} Rg8 {[%emt 0:00:23]} 39. Rg4 {[%emt 0:00:41]} Ng6 {[%emt 0:00:31]} 40. Ke3 {[%emt 0:02:14]} Rh8 {[%emt 0:01:18]} 41. Rg3 {[%emt 0:00:02]} Rh1 {[%emt 0:00:16]} 42. d4 {[%emt 0:00:31]} Re1+ {[%emt 0:03:52]} 43. Kf3 {[%emt 0:00:32]} d5 {[%emt 0:06:16]} 44. exd5+ {[%emt 0:00:44]} Kf5 {[%emt 0:00:30]} 45. Kf2 {[%emt 0:02:47]} Re4 {[%emt 0:00:39]} 46. Kf3 {[%emt 0:06:58]} Ne7 {[%emt 0:09:59]} 47. g6 $19 {[%emt 0:00:55]} Nxd5 {[%emt 0:05:46]} 48. Kf2 {[%emt 0:03:54]} Re8 {[%emt 0:01:50]} 49. g7 {[%emt 0:00:39]} Rg8 {[%emt 0:00:31]} 50. Ke2 {[%emt 0:09:36]} Kf6 {[%emt 0:01:15]} 51. Rf3+ {[%emt 0:01:41]} Kxg7 {[%emt 0:00:12]} 52. Kd3 {[%emt 0:00:02]} Rf8 {[%emt 0:03:24]} 53. Rg3+ {[%emt 0:00:02]} Kf7 {[%emt 0:00:19]} 54. Kc4 {[%emt 0:00:03]} Ke6 {[%emt 0:00:28]} 55. Kc5 {[%emt 0:00:54]} Rf5 {[%emt 0:00:29]} 56. c4 {[%emt 0:00:42]} Nf6+ {[%emt 0:02:47]} 57. d5+ {[%emt 0:00:03]} Ke5 {[%emt 0:00:01]} 58. Re3+ {[%emt 0:03:04]} Ne4+ {[%emt 0:00:09]} 59. Rxe4+ {[%emt 0:00:02]} Kxe4 {[%emt 0:00:04]} 60. b5 {[%emt 0:00:01]} axb5 {[%emt 0:00:20] Kd4+ Ke5+} 0-1

[Event "Lviv Tradition June 2018"]
[Site "Lviv"]
[Date "2018.06.17"]
[Round "10"]
[White "Anwesh, Upadhyaya"]
[Black "Akdogan, Alperen"]
[Result "1/2-1/2"]
[ECO "A14"]
[WhiteElo "2375"]
[BlackElo "2260"]
[Annotator "NA"]
[PlyCount "60"]
[EventDate "2018.??.??"]
[EventType "schev"]
[EventCountry "UKR"]
[SourceTitle "playchess.com"]
[Source "ChessBase"]
[SourceQuality "1"]
[TimeControl "5400+30"]

1. c4 {[%emt 0:00:14]} Nf6 {[%emt 0:00:36]} 2. g3 {[%emt 0:00:05]} e6 {[%emt 0:00:21]} 3. Bg2 {[%emt 0:00:07]} d5 {[%emt 0:02:55]} 4. Nf3 {[%emt 0:00:05]} Be7 {[%emt 0:00:49]} 5. O-O {[%emt 0:00:15]} O-O {[%emt 0:00:21]} 6. d4 {[%emt 0:00:04]} c6 {[%emt 0:07:01]} 7. Nc3 {[%emt 0:04:42]} Nbd7 {[%emt 0:05:04]} 8. Nd2 {[%emt 0:00:23]} b6 {[%emt 0:03:48]} 9. e4 {[%emt 0:10:24]} dxe4 {[%emt 0:01:23] LiveBook: 11 Games} 10. Ndxe4 {[%emt 0:00:15]} Bb7 {[%emt 0:03:03]} 11. Qe2 {[%emt 0:01:58] E07: Katalanisch} (11. Bf4 Nxe4 12. Nxe4 Nf6 13. Nxf6+ Bxf6 14. Be5 {½-½ (14) Khalifman,A (2632)-Fedoseev,V (2525) Tallinn 2012}) 11... Nxe4 {[%emt 0:18:51]} 12. Nxe4 {[%emt 0:00:06]} c5 $146 {[%emt 0:03:06]} ({Vorgänger:} 12... Nf6 13. Rd1 Re8 14. Be3 Rc8 15. Rac1 Rc7 16. Nxf6+ Bxf6 17. Bf4 Rd7 18. Be5 Qe7 {1-0 (31) Bednar,M (2255)-Gerbery,R (2213) Slovakia 2009}) 13. dxc5 {[%emt 0:00:18]} Nxc5 {[%emt 0:00:20]} 14. Nxc5 {[%emt 0:08:52]} Bxg2 {[%emt 0:00:19]} 15. Kxg2 {[%emt 0:00:11]} Bxc5 {[%emt 0:00:09]} 16. Rd1 {[%emt 0:00:20]} Qe7 {[%emt 0:05:17]} 17. Bf4 {[%emt 0:00:10]} Rfd8 {[%emt 0:00:55]} 18. Be5 {[%emt 0:01:40]} Qb7+ {[%emt 0:10:28]} 19. Qf3 {[%emt 0:00:29]} Qxf3+ {[%emt 0:00:33]} 20. Kxf3 {[%emt 0:00:03]} Rac8 {[%emt 0:00:21]} 21. Ke2 {[%emt 0:00:51]} f6 {[%emt 0:00:29]} 22. Bc3 {[%emt 0:00:07]} Kf7 {[%emt 0:00:16]} 23. f3 {[%emt 0:00:23]} e5 {[%emt 0:03:49]} 24. Rxd8 {[%emt 0:01:02]} Rxd8 {[%emt 0:00:04]} 25. Rd1 $11 {[%emt 0:00:10]} Rxd1 {[%emt 0:00:22]} 26. Kxd1 {[%emt 0:00:01]} Ke6 {[%emt 0:02:12]} 27. g4 {[%emt 0:00:14]} g6 {[%emt 0:00:49]} 28. Ke2 {[%emt 0:00:08]} h5 {[%emt 0:00:58]} 29. h3 {[%emt 0:00:09]} hxg4 {[%emt 0:00:06]} 30. hxg4 {[%emt 0:00:05]} f5 {[%emt 0:02:15]} 1/2-1/2

[Event "Lviv Tradition June 2018"]
[Site "Lviv"]
[Date "2018.06.17"]
[Round "10"]
[White "Sabuk, Piotr"]
[Black "Tanriverdi, Enes"]
[Result "1-0"]
[ECO "E73"]
[WhiteElo "2369"]
[BlackElo "2281"]
[Annotator "NA"]
[PlyCount "89"]
[EventDate "2018.??.??"]
[EventType "schev"]
[EventCountry "UKR"]
[SourceTitle "playchess.com"]
[Source "ChessBase"]
[SourceQuality "1"]
[TimeControl "5400+30"]

1. d4 {[%emt 0:00:00]} Nf6 {[%emt 0:00:08]} 2. c4 {[%emt 0:00:04]} g6 {[%emt 0:00:09]} 3. Nc3 {[%emt 0:00:09]} Bg7 {[%emt 0:00:06]} 4. e4 {[%emt 0:00:17]} d6 {[%emt 0:00:05]} 5. Be2 {[%emt 0:00:57]} O-O {[%emt 0:00:34]} 6. Be3 {[%emt 0:00:43]} c5 {[%emt 0:01:07]} 7. dxc5 {[%emt 0:00:36] E73: King's Indian: Averbakh Variation without 6...c5} Qa5 {[%emt 0:01:20]} 8. f3 {[%emt 0:01:01]} (8. Bd2 Qxc5 9. Nf3 Bg4 10. Be3 Qa5 11. O-O Nc6 12. a3 Rfc8 13. b4 Qd8 14. Qb3 Nd7 15. Rfd1 Nce5 16. Nxe5 Bxe2 17. Nxe2 Bxe5 18. Rac1 Qc7 19. Nf4 Bxf4 20. Bxf4 {1-0 (44) Can,E (2590)-Amin,B (2700) Dubai 2018}) 8... dxc5 {[%emt 0:02:39]} 9. e5 {[%emt 0:02:59]} Nfd7 {[%emt 0:00:56] LiveBook: 5 Games} 10. f4 {[%emt 0:00:37]} Na6 $146 {[%emt 0:13:57]} ({Predecessor:} 10... Nc6 $11 11. Nf3 f6 12. O-O fxe5 13. fxe5 Ndxe5 14. Qd5+ e6 15. Qxc5 {½-½ (37) Buhmann,R (2564)-Andersen,M (2589) Germany 2018}) 11. Nh3 {[%emt 0:12:30]} (11. Nf3 $16) 11... Qd8 {[%emt 0:05:38]} 12. Ng5 {[%emt 0:12:23]} Nb6 {[%emt 0:09:48]} 13. Nge4 {[%emt 0:14:40]} Be6 {[%emt 0:16:42]} 14. Qb3 {[%emt 0:04:49]} ({Reject} 14. Nxc5 $6 Nxc5 15. Qxd8 Rfxd8 $11) 14... Qc7 {[%emt 0:02:51]} (14... f6 $142) 15. O-O {[%emt 0:02:59]} Rad8 {[%emt 0:28:17]} 16. Rad1 {[%emt 0:13:55]} Rxd1 {[%emt 0:06:12]} 17. Rxd1 {[%emt 0:00:49]} Rd8 $16 {[%emt 0:01:29]} 18. Nd5 {[%emt 0:14:14]} Bxd5 {[%emt 0:01:29]} 19. cxd5 {[%emt 0:00:02]} Nb4 {[%emt 0:00:24]} 20. d6 {[%emt 0:04:44]} exd6 {[%emt 0:00:17]} 21. a3 {[%emt 0:02:38]} N4d5 {[%emt 0:01:00]} 22. exd6 {[%emt 0:01:13]} Qc8 {[%emt 0:01:49]} 23. Bxc5 {[%emt 0:03:33]} Nxf4 {[%emt 0:00:08]} 24. Bf3 {[%emt 0:01:01]} Ne6 {[%emt 0:01:11]} 25. Be3 {[%emt 0:00:27]} Nd7 {[%emt 0:02:52]} 26. Bg4 {[%emt 0:02:55]} Re8 {[%emt 0:00:08]} 27. Rc1 {[%emt 0:01:30]} Qd8 {[%emt 0:01:41]} 28. Bxe6 {[%emt 0:01:34]} Rxe6 {[%emt 0:00:02]} 29. Qxb7 {[%emt 0:00:14]} Nf8 {[%emt 0:00:16]} 30. Rc8 {[%emt 0:00:47]} Qh4 {[%emt 0:01:09]} 31. g3 {[%emt 0:00:37]} Qg4 {[%emt 0:00:25]} 32. d7 {[%emt 0:00:28]} Rxe4 {[%emt 0:00:35]} 33. d8=Q {[%emt 0:00:22]} Rxe3 {[%emt 0:00:12]} 34. Qb4 {[%emt 0:00:28]} Rxg3+ {[%emt 0:01:21]} 35. hxg3 {[%emt 0:00:07]} Qxg3+ {[%emt 0:00:01]} 36. Kf1 {[%emt 0:00:16]} Qf3+ {[%emt 0:00:10]} 37. Ke1 {[%emt 0:00:22]} Qe3+ {[%emt 0:00:07]} 38. Kd1 {[%emt 0:00:18]} Qf3+ {[%emt 0:00:04]} 39. Kc2 {[%emt 0:00:47]} Qf5+ {[%emt 0:00:27]} 40. Kb3 {[%emt 0:00:22]} Qe6+ {[%emt 0:00:09]} 41. Qc4 {[%emt 0:00:22]} Qe5 {[%emt 0:00:06]} 42. Qd2 {[%emt 0:01:14]} h5 {[%emt 0:00:16]} 43. Qf2 {[%emt 0:00:24]} Bf6 {[%emt 0:00:44]} 44. Rxf8+ {[%emt 0:00:50]} Kxf8 {[%emt 0:00:09]} 45. Qcc5+ {[%emt 0:00:14]} 1-0